[Event "Early-Titled-Tuesday-Blitz-January-30-2024"]
[Site "Chess.com"]
[Date "2024.01.30"]
[Round "2"]
[White "Flaccidmoves"]
[Black "frequentblunders"]
[Result "0-1"]
[WhiteElo "2457"]
[BlackElo "2149"]
[TimeControl "180+1"]
[EndTime "8:20:19 PST"]
[Termination "frequentblunders won by checkmate"]

1. c4 {[%clk 0:03:00.9]} 1... e6 {[%clk 0:02:59.8]} 2. d4 {[%clk 0:02:58.9]}
2... d5 {[%clk 0:03:00.7]} 3. Nc3 {[%clk 0:02:59.2]} 3... c6 {[%clk 0:03:01.2]}
4. e3 {[%clk 0:02:55.6]} 4... Nf6 {[%clk 0:03:01.3]} 5. b3 {[%clk 0:02:46.9]}
5... Bd6 {[%clk 0:03:00.8]} 6. Bd3 {[%clk 0:02:45.6]} 6... Nbd7 {[%clk
0:02:56.7]} 7. Nf3 {[%clk 0:02:42.3]} 7... e5 {[%clk 0:02:55.7]} 8. cxd5 {[%clk
0:02:34]} 8... cxd5 {[%clk 0:02:54.3]} 9. dxe5 {[%clk 0:02:25.9]} 9... Nxe5
{[%clk 0:02:55.2]} 10. Nxe5 {[%clk 0:02:21.9]} 10... Bxe5 {[%clk 0:02:56.1]} 11.
Bb2 {[%clk 0:02:20.4]} 11... O-O {[%clk 0:02:54.8]} 12. O-O {[%clk 0:02:19.9]}
12... Be6 {[%clk 0:02:44.1]} 13. f4 {[%clk 0:01:42.7]} 13... Bc7 {[%clk
0:02:31]} 14. Nb5 {[%clk 0:01:39.5]} 14... Bb6 {[%clk 0:02:29.9]} 15. Nd4 {[%clk
0:01:36.3]} 15... Ne4 {[%clk 0:02:17.9]} 16. Qh5 {[%clk 0:01:30.4]} 16... Bxd4
{[%clk 0:01:54]} 17. Bxd4 {[%clk 0:01:28.9]} 17... f5 {[%clk 0:01:54.6]} 18.
Rac1 {[%clk 0:00:46.8]} 18... b6 {[%clk 0:01:50.5]} 19. Bxe4 {[%clk 0:00:43.8]}
19... dxe4 {[%clk 0:01:43.4]} 20. Rfd1 {[%clk 0:00:43.2]} 20... Qe7 {[%clk
0:01:37.4]} 21. g4 {[%clk 0:00:29.7]} 21... Rac8 {[%clk 0:01:20.9]} 22. gxf5
{[%clk 0:00:23.4]} 22... Bxf5 {[%clk 0:01:20.9]} 23. Be5 {[%clk 0:00:11.3]}
23... Bg6 {[%clk 0:01:00.3]} 24. Qg4 {[%clk 0:00:07.8]} 24... Bf5 {[%clk
0:00:55.2]} 25. Qg2 {[%clk 0:00:07]} 25... g6 {[%clk 0:00:43.7]} 26. Rxc8 {[%clk
0:00:04.4]} 26... Rxc8 {[%clk 0:00:43.8]} 27. Qd2 {[%clk 0:00:04.7]} 27... h5
{[%clk 0:00:14.5]} 28. Qd5+ {[%clk 0:00:04.9]} 28... Qe6 {[%clk 0:00:12.3]} 29.
Qxe6+ {[%clk 0:00:02.7]} 29... Bxe6 {[%clk 0:00:13.2]} 30. Rd6 {[%clk
0:00:03.2]} 30... Bg4 {[%clk 0:00:12]} 31. Rd2 {[%clk 0:00:02.3]} 31... Rc1+
{[%clk 0:00:11.8]} 32. Kf2 {[%clk 0:00:02.8]} 32... Rh1 {[%clk 0:00:12.3]} 33.
Kg3 {[%clk 0:00:03.4]} 33... Rg1+ {[%clk 0:00:12.7]} 34. Kh4 {[%clk 0:00:03.9]}
34... Kf7 {[%clk 0:00:12.6]} 35. h3 {[%clk 0:00:03.1]} 35... Rh1 {[%clk
0:00:12.5]} 36. Kg5 {[%clk 0:00:02.9]} 36... Rxh3 {[%clk 0:00:12.1]} 37. Rd6
{[%clk 0:00:03.8]} 37... Rg3 {[%clk 0:00:11.6]} 38. Rf6+ {[%clk 0:00:04.1]}
38... Ke7 {[%clk 0:00:11.7]} 39. Rxg6 {[%clk 0:00:04.1]} 39... Bf3+ {[%clk
0:00:11.5]} 40. Kh6 {[%clk 0:00:04.5]} 40... Rxg6+ {[%clk 0:00:11.3]} 41. Kxg6
{[%clk 0:00:05.4]} 41... h4 {[%clk 0:00:10.8]} 42. f5 {[%clk 0:00:06.3]} 42...
h3 {[%clk 0:00:11]} 43. Kg7 {[%clk 0:00:06.6]} 43... Bh5 {[%clk 0:00:11]} 44.
Bh2 {[%clk 0:00:06]} 44... Bf7 {[%clk 0:00:10.3]} 45. Kh6 {[%clk 0:00:05.6]}
45... Kf6 {[%clk 0:00:09.8]} 46. Bg3 {[%clk 0:00:03.7]} 46... Kxf5 {[%clk
0:00:10]} 47. Bh2 {[%clk 0:00:04.1]} 47... Kg4 {[%clk 0:00:10.3]} 48. Kg7 {[%clk
0:00:04.8]} 48... Be6 {[%clk 0:00:10.5]} 49. Kf6 {[%clk 0:00:05.5]} 49... Bc8
{[%clk 0:00:10]} 50. Ke5 {[%clk 0:00:05.9]} 50... Bb7 {[%clk 0:00:10.3]} 51. Kd4
{[%clk 0:00:04.7]} 51... Kf3 {[%clk 0:00:10.6]} 52. a4 {[%clk 0:00:04.6]} 52...
Kg2 {[%clk 0:00:11]} 53. Bf4 {[%clk 0:00:04.8]} 53... h2 {[%clk 0:00:11.1]} 54.
Bxh2 {[%clk 0:00:05.5]} 54... Kxh2 {[%clk 0:00:12]} 55. b4 {[%clk 0:00:06.1]}
55... Kg3 {[%clk 0:00:12.4]} 56. a5 {[%clk 0:00:06.3]} 56... Kf3 {[%clk
0:00:13]} 57. axb6 {[%clk 0:00:06.3]} 57... axb6 {[%clk 0:00:13.9]} 58. b5
{[%clk 0:00:06.9]} 58... Ke2 {[%clk 0:00:13.4]} 59. Ke5 {[%clk 0:00:07]} 59...
Kxe3 {[%clk 0:00:13.7]} 60. Kd6 {[%clk 0:00:07.9]} 60... Kd4 {[%clk 0:00:13.4]}
61. Kc7 {[%clk 0:00:08.8]} 61... Bd5 {[%clk 0:00:13.8]} 62. Kxb6 {[%clk
0:00:08.7]} 62... e3 {[%clk 0:00:14.3]} 63. Ka7 {[%clk 0:00:09.1]} 63... e2
{[%clk 0:00:14.9]} 64. b6 {[%clk 0:00:10]} 64... e1=Q {[%clk 0:00:15.4]} 65. Kb8
{[%clk 0:00:10.9]} 65... Qb4 {[%clk 0:00:14.8]} 66. b7 {[%clk 0:00:11.8]} 66...
Qxb7# {[%clk 0:00:15]} 0-1

[Event "Early-Titled-Tuesday-Blitz-January-30-2024"]
[Site "Chess.com"]
[Date "2024.01.30"]
[Round "2"]
[White "Suleyman_Chess06"]
[Black "shimastream"]
[Result "0-1"]
[WhiteElo "2628"]
[BlackElo "3029"]
[TimeControl "180+1"]
[EndTime "8:20:23 PST"]
[Termination "shimastream won by resignation"]

1. Nf3 {[%clk 0:03:00.9]} 1... c5 {[%clk 0:02:51.8]} 2. c4 {[%clk 0:02:59.7]}
2... Nf6 {[%clk 0:02:45.2]} 3. Nc3 {[%clk 0:02:59.6]} 3... Nc6 {[%clk
0:02:44.2]} 4. e3 {[%clk 0:02:57.1]} 4... e5 {[%clk 0:02:34.5]} 5. d4 {[%clk
0:02:49.4]} 5... e4 {[%clk 0:02:34.7]} 6. Ne5 {[%clk 0:02:49.1]} 6... h5 {[%clk
0:02:19.2]} 7. Be2 {[%clk 0:02:48]} 7... Qe7 {[%clk 0:02:16.4]} 8. Nxc6 {[%clk
0:02:32.5]} 8... dxc6 {[%clk 0:02:17.3]} 9. b3 {[%clk 0:02:27.1]} 9... Qc7
{[%clk 0:02:12.2]} 10. d5 {[%clk 0:02:24.1]} 10... h4 {[%clk 0:02:09.4]} 11. h3
{[%clk 0:02:23.7]} 11... Qe5 {[%clk 0:02:05.3]} 12. Bb2 {[%clk 0:02:22.4]} 12...
Qg5 {[%clk 0:02:05.5]} 13. Bf1 {[%clk 0:02:15.3]} 13... Bf5 {[%clk 0:01:55.9]}
14. Qc2 {[%clk 0:02:08.6]} 14... Be7 {[%clk 0:01:53.4]} 15. O-O-O {[%clk
0:02:07]} 15... O-O {[%clk 0:01:49.1]} 16. Rg1 {[%clk 0:01:59.5]} 16... Rad8
{[%clk 0:01:42.9]} 17. g4 {[%clk 0:01:58.7]} 17... Bg6 {[%clk 0:01:38.5]} 18.
Be2 {[%clk 0:01:48.4]} 18... cxd5 {[%clk 0:01:33.8]} 19. cxd5 {[%clk 0:01:49.3]}
19... Nxd5 {[%clk 0:01:33.3]} 20. Nxd5 {[%clk 0:01:50.2]} 20... Rxd5 {[%clk
0:01:33.8]} 21. Bc4 {[%clk 0:01:50.5]} 21... Rdd8 {[%clk 0:01:27.9]} 22. Bc3
{[%clk 0:01:37.6]} 22... Bf6 {[%clk 0:01:23.1]} 23. Qb2 {[%clk 0:01:36]} 23...
Bxc3 {[%clk 0:01:17.1]} 24. Qxc3 {[%clk 0:01:36.9]} 24... Qe7 {[%clk 0:01:17.3]}
25. Bd5 {[%clk 0:01:25.8]} 25... b5 {[%clk 0:01:14]} 26. Rd2 {[%clk 0:01:25.4]}
26... c4 {[%clk 0:01:04]} 27. Rgd1 {[%clk 0:01:21.7]} 27... cxb3 {[%clk
0:01:02.4]} 28. Qxb3 {[%clk 0:01:18.2]} 28... Rc8+ {[%clk 0:00:56]} 29. Kb1
{[%clk 0:01:18.3]} 29... Rc5 {[%clk 0:00:56.3]} 30. Rc2 {[%clk 0:01:11]} 30...
Rfc8 {[%clk 0:00:46.3]} 31. Rxc5 {[%clk 0:01:03.1]} 31... Qxc5 {[%clk
0:00:47.2]} 32. Qb2 {[%clk 0:01:03]} 32... a5 {[%clk 0:00:43.1]} 33. Rc1 {[%clk
0:00:59.3]} 33... Qxc1+ {[%clk 0:00:41.1]} 34. Qxc1 {[%clk 0:01:00.2]} 34...
Rxc1+ {[%clk 0:00:40.7]} 35. Kxc1 {[%clk 0:01:01.1]} 35... Kf8 {[%clk 0:00:41]}
36. Kb2 {[%clk 0:00:58.4]} 36... f5 {[%clk 0:00:37.8]} 37. f3 {[%clk 0:00:32.3]}
37... exf3 {[%clk 0:00:30.7]} 38. Bxf3 {[%clk 0:00:33.2]} 38... fxg4 {[%clk
0:00:31]} 39. Bxg4 {[%clk 0:00:33.8]} 39... b4 {[%clk 0:00:27.2]} 40. Kb3 {[%clk
0:00:33.1]} 40... Bf7+ {[%clk 0:00:21.1]} 41. Ka4 {[%clk 0:00:33.2]} 41... Bxa2
{[%clk 0:00:21.8]} 42. Kxa5 {[%clk 0:00:33.6]} 42... b3 {[%clk 0:00:22.4]} 43.
Be6 {[%clk 0:00:32.8]} 43... Ke7 {[%clk 0:00:20.7]} 44. Bc4 {[%clk 0:00:29.7]}
44... g5 {[%clk 0:00:20.9]} 45. Kb4 {[%clk 0:00:29.6]} 45... Bb1 {[%clk
0:00:13.3]} 46. Kxb3 {[%clk 0:00:27]} 46... Bf5 {[%clk 0:00:13.2]} 47. Bf1
{[%clk 0:00:25.7]} 47... Kd6 {[%clk 0:00:12.4]} 48. Kc3 {[%clk 0:00:26]} 48...
Ke5 {[%clk 0:00:13.3]} 49. Kd2 {[%clk 0:00:26.2]} 49... Kd5 {[%clk 0:00:09.2]}
50. Bg2+ {[%clk 0:00:21.5]} 50... Ke5 {[%clk 0:00:08.2]} 51. Bf1 {[%clk
0:00:21.6]} 51... Be6 {[%clk 0:00:08.8]} 52. Ke1 {[%clk 0:00:21.6]} 52... Ke4
{[%clk 0:00:07.7]} 53. Kf2 {[%clk 0:00:22.3]} 53... Bd7 {[%clk 0:00:07.4]} 54.
Bg2+ {[%clk 0:00:22.5]} 54... Kd3 {[%clk 0:00:07.6]} 55. Bf1+ {[%clk 0:00:23]}
55... Kd2 {[%clk 0:00:06.4]} 56. Bg2 {[%clk 0:00:19.2]} 56... Be6 {[%clk
0:00:05.3]} 57. Bf1 {[%clk 0:00:19.3]} 57... Bf5 {[%clk 0:00:05]} 58. Bg2 {[%clk
0:00:16.3]} 58... Bg6 {[%clk 0:00:04.8]} 59. e4 {[%clk 0:00:15.6]} 59... Kd3
{[%clk 0:00:04.5]} 60. e5 {[%clk 0:00:15.8]} 60... Kd4 {[%clk 0:00:04.7]} 61. e6
{[%clk 0:00:16.3]} 61... Ke5 {[%clk 0:00:04.9]} 62. e7 {[%clk 0:00:16.7]} 62...
Kf6 {[%clk 0:00:05.1]} 63. Kf3 {[%clk 0:00:16.9]} 63... Kxe7 {[%clk 0:00:05.3]}
64. Kg4 {[%clk 0:00:17.1]} 64... Kf6 {[%clk 0:00:05.6]} 65. Kf3 {[%clk
0:00:17.6]} 65... Ke5 {[%clk 0:00:05.2]} 66. Kf2 {[%clk 0:00:18.1]} 66... Kf4
{[%clk 0:00:05]} 67. Bf1 {[%clk 0:00:18.8]} 67... Be4 {[%clk 0:00:05.3]} 68. Be2
{[%clk 0:00:18.1]} 68... Bf5 {[%clk 0:00:05.5]} 69. Bf1 {[%clk 0:00:18.6]} 69...
Be6 {[%clk 0:00:06.1]} 70. Be2 {[%clk 0:00:18.8]} 70... Bxh3 {[%clk 0:00:05.9]}
71. Kg1 {[%clk 0:00:19.7]} 71... Kg3 {[%clk 0:00:05.6]} 72. Bd1 {[%clk
0:00:19.2]} 72... Bg2 {[%clk 0:00:04.7]} 73. Be2 {[%clk 0:00:17.7]} 73... h3
{[%clk 0:00:04.8]} 0-1

[Event "Early-Titled-Tuesday-Blitz-January-30-2024"]
[Site "Chess.com"]
[Date "2024.01.30"]
[Round "2"]
[White "NM_Antelacus"]
[Black "JuniorJumper"]
[Result "0-1"]
[WhiteElo "2247"]
[BlackElo "2519"]
[TimeControl "180+1"]
[EndTime "8:20:26 PST"]
[Termination "JuniorJumper won on time"]

1. e4 {[%clk 0:03:00.9]} 1... e5 {[%clk 0:02:59.3]} 2. Nf3 {[%clk 0:03:00.7]}
2... Nc6 {[%clk 0:02:59.3]} 3. Bc4 {[%clk 0:02:59.8]} 3... Nf6 {[%clk
0:02:58.9]} 4. d3 {[%clk 0:02:59.9]} 4... Be7 {[%clk 0:02:57.8]} 5. O-O {[%clk
0:02:58.8]} 5... O-O {[%clk 0:02:58]} 6. c3 {[%clk 0:02:58.1]} 6... d5 {[%clk
0:02:58]} 7. exd5 {[%clk 0:02:58]} 7... Nxd5 {[%clk 0:02:58.9]} 8. Re1 {[%clk
0:02:58.1]} 8... Bg4 {[%clk 0:02:58.6]} 9. Qe2 {[%clk 0:02:45.6]} 9... Nb6
{[%clk 0:02:54.9]} 10. Bb3 {[%clk 0:02:43]} 10... Kh8 {[%clk 0:02:45.6]} 11.
Nbd2 {[%clk 0:02:35.7]} 11... f6 {[%clk 0:02:40.1]} 12. Ne4 {[%clk 0:02:31]}
12... Nd5 {[%clk 0:02:10]} 13. h3 {[%clk 0:02:18.5]} 13... Bh5 {[%clk
0:02:01.2]} 14. Ng3 {[%clk 0:02:17.8]} 14... Bf7 {[%clk 0:01:51]} 15. Nf5 {[%clk
0:02:00]} 15... Bc5 {[%clk 0:01:43.4]} 16. Ne3 {[%clk 0:01:58]} 16... Nf4 {[%clk
0:01:39.1]} 17. Qf1 {[%clk 0:01:56.4]} 17... Qxd3 {[%clk 0:01:19.3]} 18. Bxf7
{[%clk 0:01:52]} 18... Rxf7 {[%clk 0:01:14.8]} 19. Rd1 {[%clk 0:01:48.1]} 19...
Qxf1+ {[%clk 0:01:07]} 20. Kxf1 {[%clk 0:01:48.3]} 20... Rd8 {[%clk 0:01:04.3]}
21. Rxd8+ {[%clk 0:01:45.2]} 21... Nxd8 {[%clk 0:01:05.2]} 22. Bd2 {[%clk
0:01:32.6]} 22... Rd7 {[%clk 0:01:03.7]} 23. Be1 {[%clk 0:01:25.7]} 23... Kg8
{[%clk 0:00:53.9]} 24. Rd1 {[%clk 0:01:23.6]} 24... Rxd1 {[%clk 0:00:53.1]} 25.
Nxd1 {[%clk 0:01:23.6]} 25... Nd3 {[%clk 0:00:53.1]} 26. Bd2 {[%clk 0:01:19.4]}
26... Ne6 {[%clk 0:00:48.2]} 27. g3 {[%clk 0:01:18.9]} 27... e4 {[%clk
0:00:44.3]} 28. Ne1 {[%clk 0:01:18.2]} 28... Nxe1 {[%clk 0:00:40.2]} 29. Kxe1
{[%clk 0:01:18.4]} 29... Kf7 {[%clk 0:00:39.4]} 30. Ke2 {[%clk 0:01:18.5]} 30...
f5 {[%clk 0:00:39.2]} 31. Ne3 {[%clk 0:01:13.2]} 31... g6 {[%clk 0:00:35.4]} 32.
Nc4 {[%clk 0:01:10.5]} 32... Kf6 {[%clk 0:00:35.5]} 33. Be3 {[%clk 0:01:08.4]}
33... Bxe3 {[%clk 0:00:35.2]} 34. Kxe3 {[%clk 0:01:07]} 34... b6 {[%clk
0:00:35.1]} 35. b4 {[%clk 0:01:00.3]} 35... g5 {[%clk 0:00:32.9]} 36. a4 {[%clk
0:00:55.4]} 36... h6 {[%clk 0:00:33]} 37. f3 {[%clk 0:00:49.9]} 37... exf3
{[%clk 0:00:29.7]} 38. Kxf3 {[%clk 0:00:50.4]} 38... Nf8 {[%clk 0:00:27.1]} 39.
Ke3 {[%clk 0:00:42]} 39... Ke6 {[%clk 0:00:24.3]} 40. Kd4 {[%clk 0:00:39.6]}
40... Ng6 {[%clk 0:00:20.2]} 41. Na3 {[%clk 0:00:38]} 41... c6 {[%clk
0:00:18.5]} 42. a5 {[%clk 0:00:37.9]} 42... Ne5 {[%clk 0:00:16.6]} 43. axb6
{[%clk 0:00:36]} 43... axb6 {[%clk 0:00:17.1]} 44. c4 {[%clk 0:00:35.5]} 44...
Nf3+ {[%clk 0:00:16]} 45. Ke3 {[%clk 0:00:35.2]} 45... Ng1 {[%clk 0:00:16.1]}
46. h4 {[%clk 0:00:35]} 46... gxh4 {[%clk 0:00:15.1]} 47. gxh4 {[%clk
0:00:35.2]} 47... Ke5 {[%clk 0:00:15.8]} 48. Kf2 {[%clk 0:00:29.2]} 48... Nh3+
{[%clk 0:00:14.6]} 49. Kg3 {[%clk 0:00:29.3]} 49... Nf4 {[%clk 0:00:14.5]} 50.
Nc2 {[%clk 0:00:19.7]} 50... Ne2+ {[%clk 0:00:14.7]} 51. Kf2 {[%clk 0:00:17.8]}
51... Nd4 {[%clk 0:00:15.1]} 52. Ne3 {[%clk 0:00:16.3]} 52... h5 {[%clk
0:00:15.6]} 53. Ng2 {[%clk 0:00:13.8]} 53... f4 {[%clk 0:00:15.3]} 54. Ne1
{[%clk 0:00:12.6]} 54... Ke4 {[%clk 0:00:15.6]} 55. Ng2 {[%clk 0:00:12.7]} 55...
Nf5 {[%clk 0:00:15.3]} 56. Ne1 {[%clk 0:00:10.9]} 56... Nxh4 {[%clk 0:00:14.8]}
57. b5 {[%clk 0:00:09.2]} 57... cxb5 {[%clk 0:00:14.4]} 58. cxb5 {[%clk
0:00:08.2]} 58... Nf5 {[%clk 0:00:15]} 59. Nc2 {[%clk 0:00:07.9]} 59... Kd3
{[%clk 0:00:14.7]} 60. Nb4+ {[%clk 0:00:07.6]} 60... Kc4 {[%clk 0:00:14.7]} 61.
Nc6 {[%clk 0:00:07]} 61... Kxb5 {[%clk 0:00:11.9]} 62. Ne5 {[%clk 0:00:07.2]}
62... Nd4 {[%clk 0:00:07.2]} 63. Ng6 {[%clk 0:00:06.3]} 63... Ne6 {[%clk
0:00:06.5]} 64. Kf3 {[%clk 0:00:06]} 64... Kc4 {[%clk 0:00:07]} 65. Ke4 {[%clk
0:00:03.8]} 65... b5 {[%clk 0:00:07]} 66. Ne5+ {[%clk 0:00:04.1]} 66... Kc3
{[%clk 0:00:07.1]} 0-1

[Event "Early-Titled-Tuesday-Blitz-January-30-2024"]
[Site "Chess.com"]
[Date "2024.01.30"]
[Round "2"]
[White "Vlad_Lukiianchuk"]
[Black "Sina_Movahed"]
[Result "0-1"]
[WhiteElo "2631"]
[BlackElo "3031"]
[TimeControl "180+1"]
[EndTime "8:20:28 PST"]
[Termination "Sina_Movahed won by checkmate"]

1. d4 {[%clk 0:03:00.9]} 1... Nf6 {[%clk 0:02:59.4]} 2. c4 {[%clk 0:02:59.5]}
2... g6 {[%clk 0:02:59.8]} 3. g3 {[%clk 0:02:57.6]} 3... Bg7 {[%clk 0:03:00.2]}
4. Bg2 {[%clk 0:02:57.7]} 4... O-O {[%clk 0:03:00.9]} 5. Nf3 {[%clk 0:02:55.7]}
5... d6 {[%clk 0:03:01.8]} 6. Nc3 {[%clk 0:02:52.8]} 6... Nbd7 {[%clk
0:03:01.2]} 7. O-O {[%clk 0:02:48.2]} 7... e5 {[%clk 0:02:59.5]} 8. b3 {[%clk
0:02:40.5]} 8... Re8 {[%clk 0:02:55.9]} 9. e3 {[%clk 0:02:28]} 9... e4 {[%clk
0:02:48.2]} 10. Nd2 {[%clk 0:02:22.3]} 10... Nf8 {[%clk 0:02:35.4]} 11. Ndxe4
{[%clk 0:02:19.6]} 11... Nxe4 {[%clk 0:02:35.7]} 12. Nxe4 {[%clk 0:02:20.2]}
12... Bf5 {[%clk 0:02:35.8]} 13. Nc3 {[%clk 0:02:17.4]} 13... Qc8 {[%clk
0:02:35.9]} 14. Re1 {[%clk 0:02:12.4]} 14... Bh3 {[%clk 0:02:31.7]} 15. Bh1
{[%clk 0:02:11.2]} 15... Ne6 {[%clk 0:02:30]} 16. Bb2 {[%clk 0:02:07.6]} 16...
Ng5 {[%clk 0:02:23.6]} 17. f3 {[%clk 0:01:31.9]} 17... c5 {[%clk 0:02:15.2]} 18.
Nd5 {[%clk 0:01:29]} 18... b5 {[%clk 0:01:24.1]} 19. cxb5 {[%clk 0:00:49.4]}
19... Qb7 {[%clk 0:01:16.2]} 20. Nf4 {[%clk 0:00:48.3]} 20... Bd7 {[%clk
0:01:04]} 21. h4 {[%clk 0:00:36.5]} 21... Ne6 {[%clk 0:00:58.2]} 22. Nxe6 {[%clk
0:00:33.8]} 22... Bxe6 {[%clk 0:00:59.1]} 23. Qd3 {[%clk 0:00:29.2]} 23... d5
{[%clk 0:00:54.1]} 24. Rac1 {[%clk 0:00:12.5]} 24... Rac8 {[%clk 0:00:53.1]} 25.
Qd2 {[%clk 0:00:10.1]} 25... c4 {[%clk 0:00:38.6]} 26. bxc4 {[%clk 0:00:10.3]}
26... dxc4 {[%clk 0:00:38.9]} 27. a4 {[%clk 0:00:09.9]} 27... Qb8 {[%clk
0:00:39.1]} 28. f4 {[%clk 0:00:09.4]} 28... Red8 {[%clk 0:00:31.5]} 29. Qe2
{[%clk 0:00:05.6]} 29... h5 {[%clk 0:00:29.1]} 30. Qf1 {[%clk 0:00:03.3]} 30...
a6 {[%clk 0:00:27.7]} 31. Qf2 {[%clk 0:00:02.4]} 31... axb5 {[%clk 0:00:27.8]}
32. axb5 {[%clk 0:00:03.3]} 32... Qxb5 {[%clk 0:00:28.4]} 33. Bc3 {[%clk
0:00:04.2]} 33... Rb8 {[%clk 0:00:25.8]} 34. e4 {[%clk 0:00:04.5]} 34... Bg4
{[%clk 0:00:24.4]} 35. d5 {[%clk 0:00:04.5]} 35... Bxc3 {[%clk 0:00:23.4]} 36.
Rxc3 {[%clk 0:00:05.4]} 36... Qa5 {[%clk 0:00:21]} 37. Rec1 {[%clk 0:00:05.8]}
37... Rb4 {[%clk 0:00:20.4]} 38. Rxc4 {[%clk 0:00:05.1]} 38... Rxc4 {[%clk
0:00:19.7]} 39. Rxc4 {[%clk 0:00:06]} 39... Qa1+ {[%clk 0:00:19.6]} 40. Qf1
{[%clk 0:00:06]} 40... Qa7+ {[%clk 0:00:18.8]} 41. Qf2 {[%clk 0:00:06.2]} 41...
Qa1+ {[%clk 0:00:18.5]} 42. Kh2 {[%clk 0:00:06.8]} 42... Rb8 {[%clk 0:00:17.9]}
43. d6 {[%clk 0:00:06.2]} 43... Qd1 {[%clk 0:00:09.2]} 44. e5 {[%clk 0:00:02.6]}
44... Qb1 {[%clk 0:00:07.3]} 45. Rc2 {[%clk 0:00:02.8]} 45... Bf5 {[%clk
0:00:07]} 46. Rd2 {[%clk 0:00:03.4]} 46... Be6 {[%clk 0:00:07.6]} 47. Bg2 {[%clk
0:00:03.8]} 47... Kg7 {[%clk 0:00:07.1]} 48. Bh3 {[%clk 0:00:03.6]} 48... Bxh3
{[%clk 0:00:06.6]} 49. Kxh3 {[%clk 0:00:04.5]} 49... Qh1+ {[%clk 0:00:06.7]} 50.
Qh2 {[%clk 0:00:05.2]} 50... Qf3 {[%clk 0:00:07.3]} 51. Qg2 {[%clk 0:00:05.5]}
51... Qg4+ {[%clk 0:00:07.9]} 52. Kh2 {[%clk 0:00:06.1]} 52... Qe6 {[%clk
0:00:07.2]} 53. Qd5 {[%clk 0:00:05.9]} 53... Qd7 {[%clk 0:00:05.8]} 54. Rc2
{[%clk 0:00:04.8]} 54... Qf5 {[%clk 0:00:05]} 55. Qc5 {[%clk 0:00:04.4]} 55...
Kh7 {[%clk 0:00:04.7]} 56. Qc7 {[%clk 0:00:04.2]} 56... Rb1 {[%clk 0:00:04.6]}
57. d7 {[%clk 0:00:03.3]} 57... Rd1 {[%clk 0:00:05.1]} 58. Qc6 {[%clk
0:00:03.4]} 58... Rxd7 {[%clk 0:00:05.2]} 59. Rg2 {[%clk 0:00:03.2]} 59... Rd3
{[%clk 0:00:05.1]} 60. Qc4 {[%clk 0:00:02.4]} 60... Rd7 {[%clk 0:00:04.9]} 61.
Re2 {[%clk 0:00:02.9]} 61... Kg7 {[%clk 0:00:05.3]} 62. Qe4 {[%clk 0:00:03.5]}
62... Qe6 {[%clk 0:00:05]} 63. Rf2 {[%clk 0:00:03.2]} 63... Rd5 {[%clk
0:00:05.3]} 64. Re2 {[%clk 0:00:03.4]} 64... Rc5 {[%clk 0:00:05.3]} 65. Kg2
{[%clk 0:00:04.1]} 65... Rc4 {[%clk 0:00:05.7]} 66. Qf3 {[%clk 0:00:04.4]} 66...
Qc8 {[%clk 0:00:05.9]} 67. Rf2 {[%clk 0:00:04.6]} 67... Rc3 {[%clk 0:00:06.3]}
68. Qe4 {[%clk 0:00:04.9]} 68... Qg4 {[%clk 0:00:06.9]} 69. Qd5 {[%clk
0:00:04.9]} 69... Rxg3+ {[%clk 0:00:06.9]} 70. Kf1 {[%clk 0:00:05.5]} 70... Rg1#
{[%clk 0:00:06.7]} 0-1